Cogmind - Beta 13 *** ADVENTURER MODE // 2024.07.07 @ 15:05:15 Player: fishy 2.0 Result: Self-destructed Performance ------------- Evolutions (1) 500 Regions Visited (2) 400 Robots Destroyed (36) 180 Value Destroyed (926) 926 Prototype IDs (6) 120 Alien Tech Used (0) 0 Bonus (8) 8 TOTAL SCORE: 2134 Bonus ------- High Alert Combat Kills 8 Cogmind --------- Core Integrity 266/400 Matter 440/450 Energy 242/265 System Corruption 0% Temperature Cool (0) Movement Flying (187) Ox2 Location -9/Materials Parts ------- > --- POWER (1) -------- Reinforced Ion Engine > --- PROPULSION (3) --- Flight Unit Improved Flight Unit > --- UTILITY (3) ------ Large Matter Pod > --- WEAPON (2) ------- Advanced Beam Cannon Hammer > --- INVENTORY (5) ---- EM Pulse Cannon Light Assault Rifle Mining Laser Peak State ------------ > --- POWER ------------ Light Nuclear Core > --- PROPULSION ------- Carbon-fiber Leg Carbon-fiber Leg Carbon-fiber Leg > --- UTILITY ---------- Large Matter Pod Signal Interpreter Transport Network Coupler > --- WEAPON ----------- EM Pulse Cannon Advanced Beam Cannon > --- INVENTORY -------- Weight Redist. System ECM Suite Beam Cannon Light Assault Rifle Mining Laser [Rating: 21] Favorites ----------- Power Ion Engine Engine Ion Engine Power Core Light Nuclear Core Propulsion Flight Unit Leg Carbon-fiber Leg Hover Unit Hover Unit Flight Unit Flight Unit Utility Signal Interpreter Device Weight Redist. System Storage Large Matter Pod Processor Signal Interpreter Weapon Beam Cannon Energy Gun EM Pulse Gun Energy Cannon Beam Cannon Ballistic Gun Light Assault Rifle Special Weapon Mining Laser Impact Weapon Hammer Special Melee Weapon Datajack Build | -11 -10 -9 ------- Run | Yrd Mat Mat Slots Evolved 2 | . . 2 Power . | . . . Propulsion 1 | . . 1 Utility 1 | . . 1 Weapon . | . . . Parts Attached 36 | 7 11 18 Power 3 | 1 1 1 Engine 2 | 1 . 1 Core 1 | . 1 . Reactor . | . . . Propulsion 11 | 2 2 7 Treads . | . . . Leg 5 | 2 . 3 Wheel . | . . . Hover 2 | . 2 . Flight 4 | . . 4 Utility 8 | 1 3 4 Device 3 | . . 3 Storage 2 | 1 1 . Processor 3 | . 2 1 Hackware . | . . . Protection . | . . . Artifact . | . . . Weapon 14 | 3 5 6 Energy Gun 1 | 1 . . Energy Cannon 7 | . 2 5 Ballistic Gun 3 | 2 1 . Ballistic Cannon . | . . . Launcher . | . . . Special Weapon 1 | . 1 . Impact Weapon 1 | . . 1 Slashing Weapon . | . . . Piercing Weapon . | . . . Special Melee Weapon 1 | . 1 . Unidentified Prototypes 1 | . . 1 Parts Lost 4 | . . 4 Power . | . . . Propulsion 2 | . . 2 Utility 1 | . . 1 Weapon 1 | . . 1 Highest Loss Streak 2 | . . 2 To Critical Strikes . | . . . Average Slot Usage (%) 93 | . 96 91 Engine 8 | . 12 4 Core 4 | . 1 6 Leg 9 | . 8 9 Hover 9 | . 19 1 Flight 9 | . . 15 Device 3 | . . 5 Storage 11 | . 13 11 Processor 13 | . 11 14 Energy Cannon 10 | . 3 15 Ballistic Gun 6 | . 16 . Impact Weapon 3 | . . 5 Special Melee Weapon 3 | . 8 . Naked Turns . | . . . Heaviest Build 19 | 13 13 19 Greatest Support 45 | 20 20 45 Greatest Overweight (x) 4 | . 1 4 Average Overweight (x) . | . . . Largest Inventory Capacity 8 | 8 8 5 Average Capacity 5 | 6 5 5 Most Carried 5 | 3 5 5 Average Carried 3 | 1 3 4 Final Capacity 8 | 8 5 5 Final Carried 5 | 1 5 3 Class Distribution -------------------- 63% | Mutant 36% | Scavenger-Mutant Dominant Class ---------------- Mutant | -10/Materials Scavenger-Mutant | -9/Materials Resources | -11 -10 -9 ----------- Run | Yrd Mat Mat Matter Collected 689 | 198 186 305 Remotely . | . . . Salvage Created 1403 | . 186 1217 Parts 80 | . 17 63 Haulers Intercepted 2 | . 1 1 Recyclers Shooed 3 | . . 3 Parts Field Recycled . | . . . Retrieved Matter . | . . . Parts Self-Destructed . | . . . Prevented . | . . . Kills | -11 -10 -9 ------- Run | Yrd Mat Mat Combat Hostiles Destroyed 23 | . 2 21 Melee 1 | . . 1 Guns 1 | . 1 . Cannons 20 | . 1 19 Classes Destroyed 7 | . 3 4 Hauler 2 | . 1 1 Recycler 3 | . . 3 Watcher 8 | . 3 5 Swarmer 4 | . . 4 Grunt 13 | . 2 11 Brawler 1 | . . 1 Sentry 5 | . . 5 Best Kill Streak 7 | . 2 7 Combat Bots Only 6 | . 1 6 Max Kills in Single Turn 2 | . 1 2 Gunslinging . | . . . Exploded . | . . . Melee 1 | . . 1 Uniques/NPCs Destroyed . | . . . Combat | -11 -10 -9 -------- Run | Yrd Mat Mat Hostile Shots Fired 84 | . 12 72 Missed 25 | . 4 21 Damage Taken 531 | . 70 461 Core 134 | . . 134 Absorbed by Shields . | . . . Ignored by Resistances 159 | . 24 135 Core Remaining (%) 100 | 100 100 . Volleys Fired 78 | . 20 58 Largest 2 | . 2 2 Hottest 131 | . 60 131 Shots Fired 108 | . 30 78 Gun 27 | . 27 . Cannon 81 | . 3 78 Launcher . | . . . Special . | . . . Kinetic 27 | . 27 . Thermal 60 | . 3 57 Explosive . | . . . Electromagnetic 21 | . . 21 Robot Hit Streak 19 | . 11 19 Robot Miss Streak 3 | . 1 3 Penetration Max . | . . . Secondary Targets . | . . . Shots Hit Robots 84 | . 27 57 Core Hits 40 | . 12 28 Critical Kills . | . . . Critical Parts Destroyed 2 | . . 2 Critical Strikes 4 | . . 4 Corrupt 2 | . . 2 Smash 2 | . . 2 Melee Attacks 10 | . 4 6 Impact 5 | . . 5 Slashing . | . . . Piercing . | . . . Sneak Attacks 6 | . 4 2 Combat Hostiles . | . . . Follow-up Attacks . | . . . Damage Inflicted 1551 | . 246 1305 Guns 209 | . 209 . Cannons 1162 | . 35 1127 Explosions . | . . . Melee 178 | . . 178 Ramming 2 | . 2 . Kinetic 209 | . 209 . Thermal 792 | . 35 757 Explosive . | . . . Electromagnetic 370 | . . 370 Impact 178 | . . 178 Slashing . | . . . Piercing . | . . . Highest Corruption . | . . . Average Corruption . | . . . Corruption Purged . | . . . Corruption Blocked . | . . . Overload Shots . | . . . Overflow Damage 104 | . . 104 Projectiles 23 | . . 23 Explosions . | . . . Melee 81 | . . 81 Knockbacks 2 | . . 2 Impact 2 | . . 2 Kinetic . | . . . Secondary . | . . . Self-Inflicted Damage . | . . . Shots . | . . . Rammed . | . . . Targets Rammed 2 | . 1 1 Kicked 2 | . 1 1 Crushed . | . . . Highest Temperature 411 | . 67 411 Average Temperature 122 | . 14 133 Received Heat Transfer 243 | . 51 192 Effects 8 | . . 8 Shutdowns 1 | . . 1 Energy Bleed 3 | . . 3 Interference 2 | . . 2 Short Circuit 2 | . . 2 Siege Activations . | . . . Robots Corrupted 1 | . . 1 Combat Hostiles 1 | . . 1 Parts Fried 5 | . . 5 Impact Corruptions 3 | . . 3 Robots Melted . | . . . Combat Hostiles . | . . . Parts Melted 1 | . . 1 Heat Transferred 1517 | . 74 1443 Parts Sabotaged . | . . . Parts Stolen . | . . . Parts Stripped . | . . . Power Chain Reactions . | . . . Alert | -11 -10 -9 ------- Run | Yrd Mat Mat Peak Influence 405 | . 131 405 Initial . | . . . Average 148 | . 60 220 Maximum Alert Level 2 | . . 2 Low Security (%) 62 | 100 100 33 Level 1 33 | . . 58 Level 2 4 | . . 7 Level 3 . | . . . Level 4 . | . . . Level 5 . | . . . High Security . | . . . Max Security . | . . . Squads Dispatched 2 | . . 2 Investigation 2 | . . 2 Extermination . | . . . Reinforcement . | . . . Assault . | . . . Garrison . | . . . Intercept . | . . . Searches Triggered . | . . . Construction Impeded . | . . . Haulers Reinforced . | . . . Active Scanning Responses . | . . . Cargo Convoy Interrupts . | . . . Stealth | -11 -10 -9 --------- Run | Yrd Mat Mat Distress Signals 3 | . 1 2 Communications Jammed . | . . . Distress Signals . | . . . Times Spotted 30 | . 6 24 Peak Tracking Total 4 | . 2 4 Tactical Retreats . | . . . Traps | -11 -10 -9 ------- Run | Yrd Mat Mat Traps Triggered 1 | . . 1 Indirectly . | . . . Trap Hack Attempts . | . . . Triggered . | . . . Disarmed . | . . . Reprogrammed . | . . . Reused . | . . . Traps Extracted . | . . . Installed . | . . . Triggered . | . . . Machines | -11 -10 -9 ---------- Run | Yrd Mat Mat Machines Disabled 2 | . . 2 Max in Single Turn 2 | . . 2 Machines Repaired . | . . . Machines Dismantled . | . . . Machines Sabotaged . | . . . Overloaded Fab Kills . | . . . Hacking | -11 -10 -9 --------- Run | Yrd Mat Mat Machines Accessed 11 | . 5 6 Terminals 7 | . 4 3 Fabricators . | . . . Repair Stations . | . . . Recycling Units 3 | . 1 2 Scanalyzers 1 | . . 1 Garrison Access . | . . . Total Hacks 37 | . 19 18 Successful 27 | . 15 12 Failed 10 | . 4 6 Catastrophic . | . . . Database Lockouts . | . . . Manual 1 | . . 1 Terminals 24 | . 16 8 Fabricators . | . . . Repair Stations . | . . . Recycling Units 11 | . 3 8 Scanalyzers 2 | . . 2 Garrison Access . | . . . Terminal Hacks 20 | . 14 6 Record 4 | . 4 . Prototype ID Bank 3 | . 2 1 Emergency Access Points 1 | . . 1 Alert Level 2 | . 1 1 Unreport Threat 1 | . . 1 Dispatch Records 2 | . 1 1 Maintenance Status 2 | . 2 . Reinforcement Status 1 | . 1 . Hauler Manifests 2 | . 2 . Zone Layout 2 | . 1 1 Fabricator Hacks . | . . . Repair Station Hacks . | . . . Recycling Unit Hacks 5 | . 1 4 Process 1 | . . 1 Report Inventory 3 | . 1 2 Retrieve Matter 1 | . . 1 Scanalyzer 2 | . . 2 Insert Component 1 | . . 1 Analyze 1 | . . 1 Garrison Access Hacks . | . . . Unauthorized Hacks . | . . . Terminals . | . . . Fabricators . | . . . Repair Stations . | . . . Recycling Units . | . . . Scanalyzers . | . . . Garrison Access . | . . . Data Cores Recovered . | . . . Used . | . . . Hacking Detections 5 | . 2 3 Full Trace Events 4 | . 2 2 Feedback Events . | . . . Feedback Blocked . | . . . Robot Schematics Acquired . | . . . Robots Built . | . . . Authchips . | . . . Time . | . . . Total Robot Build Rating . | . . . Part Schematics Acquired 1 | . . 1 Parts Built . | . . . Authchips . | . . . Time . | . . . Total Part Build Rating . | . . . Parts Repaired . | . . . Time . | . . . Parts Recycled . | . . . Recycled Matter 36 | . . 36 Retrieved Matter 36 | . . 36 Retrieved Components . | . . . Parts Scanalyzed 1 | . . 1 Part Schematics Acquired 1 | . . 1 Parts Damaged . | . . . Bothacking | -11 -10 -9 ------------ Run | Yrd Mat Mat Used RIF Installer . | . . . Robots Hacked 4 | . 3 1 Non-combat 4 | . 3 1 Combat . | . . . Robot Hacks Applied 4 | . 3 1 parse_system 1 | . 1 . no_distress 3 | . 2 1 Relay Couplers Released . | . . . Fabnet Peak Effective % . | . . . Robots Rewired . | . . . Allies Hacked . | . . . Hacks Repelled . | . . . Allies | -11 -10 -9 -------- Run | Yrd Mat Mat Total Allies . | . . . Largest Group . | . . . Highest-Rated Group . | . . . Highest-Rated Ally . | . . . Total Orders . | . . . Ally Attacks . | . . . Total Damage . | . . . Kills . | . . . Allies Corrupted . | . . . Allies Melted . | . . . Intel | -11 -10 -9 ------- Run | Yrd Mat Mat Robot Analysis Total . | . . . Derelict Logs Recovered . | . . . Drone Launches . | . . . Drone Recoveries . | . . . Exploration | -11 -10 -9 ------------- Run | Yrd Mat Mat Turns Passed 1143 | 56 435 652 Spaces Moved 1102 | 42 529 531 Core 11 | 11 . . Treads . | . . . Legs 215 | 31 78 106 Wheels . | . . . Hover 505 | . 451 54 Flight 371 | . . 371 Fastest Speed 34 | 50 56 34 Average Speed 76 | 101 65 85 Slowest Speed 380 | 120 130 380 Overloaded Moves . | . . . Propulsion Burnouts . | . . . Robots Hopped . | . . . Cave-ins Triggered . | . . . Exploration Rate (%) 32 | 4 43 49 Regions Visited 2 Branch Regions . Pre-discovered Areas . | . . . Known Exits Taken 1 | . 1 . Unknown Exits Taken 1 | 1 . . Scrap Searched . | . . . Spaces Dug . | . . . Terrain Destroyed . | . . . Melee . | . . . Projectile . | . . . AOE . | . . . Terrain Rammed . | . . . Walls Destroyed . | . . . Machines Disabled . | . . . Actions | -11 -10 -9 --------- Run | Yrd Mat Mat Total 1286 | 55 590 641 Wait . | . . . Move 1100 | 41 528 531 Hop . | . . . Pick Up 37 | 7 16 14 Fast Attach . | . . . Attach 19 | 6 4 9 Detach . | . . . Swap 17 | 1 7 9 Drop 23 | . 10 13 Fire 78 | . 20 58 Melee 10 | . 4 6 Ram . | . . . Kick 2 | . 1 1 Crush . | . . . Escape Stasis . | . . . Rewire . | . . . Trap . | . . . Miscellaneous . | . . . Route ------- -11/Scrapyard -10/Materials (discovered 3 exits: *Mat x2 / *Min) -9/Materials (discovered 1 exit: *Mat) History --------- Turn | Location | Event 6 | -11/Scrapyard | Discovered new exit (range 15) 57 | -11/Scrapyard | Entered Materials 169 | -10/Materials | Discovered new exit (range 18) 275 | -10/Materials | Discovered new exit (range 16) 310 | -10/Materials | Discovered new exit (range 9) 320 | -10/Materials | Identified exit to Materials 335 | -10/Materials | Build established: Mutant 415 | -10/Materials | Identified exit to Mines 492 | -10/Materials | Entered another Materials area 492 | -9/Materials | Evolved 2 slots: Propulsion x1, Utility x1 785 | -9/Materials | Discovered new exit (range 11) 788 | -9/Materials | Identified exit to Materials 1011 | -9/Materials | Build established: Scavenger-Mutant 1144 | -9/Materials | Self-destructed Last Messages --------------- R-06 Scavenger collects Aluminum Leg. R-06 Scavenger collects Lgt. Treads. T-07 Excavator is excavating. R-06 Scavenger collects Beam Rifle. K-01 Serf collects debris. R-06 Scavenger collects Lgt. Armor Plating. K-01 Serf collects debris. R-06 Scavenger collects Imp. Ion Engine. K-01 Serf collects debris. R-06 Scavenger destroyed. K-01 Serf collects debris. R-06 Scavenger collects Sml. Storage Unit. Y-45 Defender destroyed. K-01 Serf collects debris. R-06 Scavenger collects Lgt. Ion Engine. K-01 Serf collects debris. R-06 Scavenger collects Lgt. Treads. K-01 Serf collects debris. Dropped ECM Suite. Discarded Broken Signal Interpreter. Map ----- +----------------------------------------------------+ | | | | | | | | | | | | | | | | | | | | | | | | | | | | | | | | | | | | | ????#######??????????????????????????????????????? | | ???? ??????????????????????????????????????? | | ????" """ ??????????????????????????????????????? | | ???#T """ ####?????????????#######??????????????? | | ####" """ + #?#######???? ######?????????? | | # # !#?# ##### ????????? | | ####+#### ### k =! ????????? | | % % %% % @%[ ????????? | | ## ### r ![ ????????? | | # ?# ##### a ????????? | | # ########???? ###+##?????????? | | # ###????????????#######??????????????? | | ##????#####???????????????????????????? | | ########## #?????# #???????????????????????????? | | ?????????# #?????# < #???????????????????????????? | | ?????????# #?????# #???????????????????????????? | | ?????????# #?????# #???????????????????????????? | | ?????????# #?????# #???????????????????????????? | | ?????????# #?????# #???????????????????????????? | | ???????###+####### #???????????????????????????? | | ???????# # #???????????????????????????? | | ???????# """ """ # #???????????????????????????? | | ???????# """ """ # #???????????????????????????? | | ???????# """ """ + #???????????????????????????? | | ???????# # #??????????????############?? | | ???????# [ # ########+####### ??? | | ???????# # ! ???? | | ???????# # | | ???????#####+##### |! | | ???????????# #???# ############ !! ######## | | ???????????# #???# #??????????# ! ##?????# | | ???????????# #???# #??????????# #??????# | +----------------------------------------------------+ Best States ------------- Heat Dissipation 28 Energy Generation 14 Energy Capacity 265 Matter Stores 450 Matter Capacity 450 Sight Range 18 Terrain Scan Density 10 Additional Mass Support 6 Resistance: KI 20 Resistance: TH 20 Resistance: EX 20 Resistance: EM 20 Resistance: I 20 Resistance: S 20 Resistance: P 20 Evasion (%) 63 Offensive Hacking 10 Item Schematics ----------------- EM Pulse Cannon | -9/Materials | Scanalyzed Robot Schematics ------------------ None Fabricated ------------ Nothing Alien Tech Used ----------------- None Achievements -------------- None Challenges ------------ None Game ------ Seed DisposableGyrokineticSlayer Manual? 0 Play Time 00:24:16 Cumulative 5.7 hours Start 2024.07.06 @ 14:27:51 End 2024.07.07 @ 15:05:15 Sessions 2 Manual Loads 0 Difficulty Adventurer Special Mode None Game No. 10 Rogue 0 Adventurer 10 Explorer 0 Win Type - Total 0 Types 0/0/0/0/0/0/0/0/0 Lore% 9 Gallery% 15 Achievement% 12 Wizard Run 0 Options --------- Layout 1 ASCII 0 Keyboard 0 Movement Mouse Keybinds 0 Fullscreen 1 Font 24/Smallcaps Map View 50x35 Zoom Use 0% Tactical HUD 0 Map Filters NONE Filters NONE Steam 1 RUN: 44b0fb40-8370-4b4e-a91f-68ab201e4bae